bitfinex-derivatives/quotes_ETHF0:USTF0_20250224
["timestamp","ask_amount","ask_price","bid_price","bid_amount"]
[1740367466002,0.73045616,2758.2,2758.1,2.56]
[1740367468602,0.00543616,2758.2,2757.8,0.5517]
[1740367468802,0.7251,2758.0,2757.8,3.1117]
[1740367469209,0.5329,2758.1,2757.8,3.1117]
[1740367469706,3.21323616,2758.2,2757.9,0.72507]
[1740367469901,0.00543616,2758.2,2757.9,0.72507]
[1740367470108,0.00543616,2758.2,2757.8,3.83681]
[1740367470308,0.73046616,2758.2,2757.8,7.04461]
[1740367470710,0.73046616,2758.2,2757.8,6.3195]
[1740367471001,0.7251,2757.9,2757.8,3.1117]
[1740367471603,0.7251,2757.9,2757.5,1.1452]
[1740367471805,5.02056,2757.9,2757.5,2.56]
[1740367472007,0.72518,2757.6,2757.5,2.56]
[1740367473309,0.72516,2757.7,2757.5,2.56]
[1740367473502,0.5257,2757.8,2757.5,2.56]
[1740367473702,0.72514,2757.8,2757.5,3.28518]
[1740367474308,0.72514,2757.8,2757.5,2.56]
[1740367474508,3.2078,2757.9,2757.7,0.72514]
[1740367474716,3.2078,2757.9,2757.6,0.72516]
[1740367474910,3.2078,2757.9,2757.5,3.1235]
[1740367475210,0.72514,2757.8,2757.5,0.5635]
[1740367475404,0.72514,2757.8,2757.6,2.56]
[1740367475711,3.93291,2757.9,2757.6,2.56]
[1740367475906,3.93291,2757.9,2757.6,3.28517]
[1740367476213,0.72515,2757.7,2757.6,2.56]
[1740367476620,0.72514,2757.8,2757.6,2.56]
[1740367476915,3.2078,2757.9,2757.6,2.56]
[1740367477206,0.72512,2757.8,2757.6,2.56]
[1740367478005,3.93291,2757.9,2757.6,2.56]
[1740367478213,3.93291,2757.9,2757.6,3.28517]
[1740367478513,0.72514,2757.8,2757.5,3.1235]
[1740367479012,3.2078,2757.9,2757.5,3.1235]
[1740367479213,0.72518,2757.6,2757.5,3.1235]
[1740367480310,0.72521,2757.5,2757.4,2.559]
[1740367480513,0.72519,2757.6,2757.4,2.559]
[1740367480814,0.7252,2757.6,2757.4,2.559]
[1740367481314,0.7252,2757.5,2757.4,2.559]
[1740367482013,3.2078,2757.6,2757.4,2.559]
[1740367482220,1.0799,2757.5,2757.2,20.107]
[1740367482409,0.72526,2757.3,2757.2,20.107]
[1740367483214,1.0799,2757.5,2757.2,20.107]
[1740367483412,0.72523,2757.4,2757.2,20.6654]
[1740367484309,0.72524,2757.4,2757.2,20.6654]
[1740367484814,0.72525,2757.4,2757.2,20.6654]
[1740367485214,0.72526,2757.3,2757.2,20.6654]
[1740367485608,0.72526,2757.3,2757.2,23.2244]
[1740367486113,3.93306,2757.3,2757.2,20.107]
[1740367486814,3.93306,2757.3,2756.8,0.5384]
[1740367487113,3.2078,2756.9,2756.6,2.559]
[1740367487310,3.2078,2757.2,2756.6,2.559]
[1740367487509,3.2078,2757.2,2757.1,0.72531]
[1740367487710,3.93309,2757.2,2756.9,0.72535]
[1740367487911,1.0799,2757.5,2757.0,3.0974]
[1740367488112,0.72524,2757.4,2757.1,0.72529]
[1740367488312,1.0799,2757.5,2757.0,4.1885]
[1740367488511,0.72531,2757.1,2757.0,3.0974]
[1740367488718,0.72531,2757.1,2757.0,2.559]
[1740367489116,8.987,2757.1,2756.5,0.00543616]
[1740367489317,3.93324,2756.6,2756.5,0.00543616]
[1740367490415,9.2078,2756.6,2755.6,1.131]
[1740367490615,0.72568,2755.7,2755.6,2.559]
[1740367490815,0.7257,2755.6,2755.5,0.5377]
[1740367491118,0.72581,2755.2,2755.1,1.1048]
[1740367491414,0.72579,2755.3,2755.1,0.5377]
[1740367491614,0.00543616,2755.4,2755.2,0.72581]
[1740367491817,0.00543616,2755.4,2755.1,1.1048]
[1740367492008,0.00543616,2755.4,2755.2,2.559]
[1740367492214,0.00543616,2755.4,2755.1,1.1048]
[1740367492414,0.00543616,2755.4,2755.2,2.559]
[1740367492816,0.00543616,2755.4,2755.3,0.72578]
[1740367493122,0.00543616,2755.4,2755.3,3.93358]
[1740367493314,0.00543616,2755.4,2755.3,3.2078]
[1740367493513,0.73119616,2755.4,2755.3,3.2078]
[1740367494319,0.00543616,2755.4,2755.1,3.0967]
[1740367494513,0.72579,2755.3,2755.1,3.0967]
[1740367494717,0.72579,2755.3,2755.0,10.67723191]
[1740367494718,3.93361,2755.2,2755.0,10.67723191]
[1740367495025,0.72583,2755.1,2755.0,10.67723191]
[1740367496122,3.2078,2755.2,2755.0,10.67723191]
[1740367496822,0.72583,2755.1,2755.0,10.67723191]
[1740367498823,3.93362,2755.2,2755.0,10.67723191]
[1740367499016,0.72583,2755.1,2755.0,10.67723191]
[1740367499217,0.72583,2755.1,2755.0,51.47723191]
[1740367499418,3.93362,2755.2,2755.0,51.47723191]
[1740367499618,0.72583,2755.1,2755.0,51.47723191]
[1740367499819,3.2078,2755.2,2755.0,10.67723191]
[1740367500024,3.93362,2755.2,2755.0,10.67723191]
[1740367500227,3.2078,2755.2,2755.0,10.67723191]
[1740367500627,0.72583,2755.1,2755.0,10.67723191]
[1740367501224,3.93363,2755.2,2755.0,10.67723191]
[1740367501431,0.73121616,2755.4,2755.0,10.67723191]
[1740367501725,0.7258,2755.3,2755.0,11.40309191]
[1740367501925,0.00543616,2755.4,2755.0,13.23723191]
[1740367502226,0.72583,2755.1,2755.0,13.23723191]
[1740367502420,0.72583,2755.1,2755.0,10.67723191]
[1740367504332,3.2078,2755.2,2755.1,0.72583]
[1740367504527,0.7258,2755.3,2755.0,11.40308191]
[1740367504829,0.00543616,2755.4,2755.3,0.72578]
[1740367505229,0.00543616,2755.4,2755.1,3.6697]
[1740367505430,0.00543616,2755.4,2755.2,0.72579]
[1740367505732,0.00543616,2755.4,2755.2,0.7258]
[1740367505935,0.00543616,2755.4,2755.1,4.39552]
[1740367506127,0.00543616,2755.4,2755.1,6.8775]
[1740367506433,0.00543616,2755.4,2755.1,7.60332]
[1740367506928,0.00543616,2755.4,2755.1,6.8775]
[1740367507133,0.73120616,2755.4,2755.1,6.8775]
[1740367507534,0.72579,2755.3,2755.1,6.8775]
[1740367508035,0.72581,2755.2,2755.0,13.23723191]
[1740367508335,0.72583,2755.1,2755.0,13.23723191]
[1740367508537,0.00543616,2755.4,2755.0,13.23723191]
[1740367508732,0.00543616,2755.4,2755.1,0.72583]
[1740367509029,0.00543616,2755.4,2755.0,16.44503191]
[1740367509030,0.00543616,2755.4,2755.0,13.88503191]
[1740367509236,0.73120616,2755.4,2755.1,2.56]
[1740367509734,0.00543616,2755.4,2755.1,3.28583]
[1740367509935,0.73119616,2755.4,2755.1,3.28583]
[1740367510337,0.00543616,2755.4,2755.1,2.56]
[1740367510836,0.00543616,2755.4,2755.1,3.28582]
[1740367511139,0.00543616,2755.4,2755.2,0.7258]
[1740367511431,0.00543616,2755.4,2755.1,2.56]
[1740367511629,0.00543616,2755.4,2755.3,3.93358]
[1740367511837,3.2078,2756.2,2756.1,0.72557]
[1740367512038,3.2078,2756.6,2755.7,3.2078]
[1740367512329,0.72551,2756.4,2756.0,0.72559]
[1740367512536,0.72551,2756.4,2756.1,0.5552]
[1740367512731,3.2078,2756.6,2756.1,0.5552]
[1740367512937,0.00543616,2756.5,2756.1,3.763]
[1740367513136,0.00543616,2756.5,2756.2,1.1219]
[1740367513641,0.73090616,2756.5,2756.2,1.1219]
[1740367513830,0.72554,2756.2,2756.1,0.5552]
[1740367514830,0.72557,2756.1,2756.0,0.00543616]
[1740367515036,1.28137,2756.1,2756.0,0.00543616]
[1740367515428,1.28137,2756.1,2755.4,0.5525]
[1740367515429,2.36975,2756.1,2755.4,0.5525]
[1740367515629,0.72569,2755.7,2755.4,0.5525]
[1740367515829,0.72572,2755.6,2755.4,0.5525]
[1740367516231,0.7257,2755.7,2755.4,0.5525]
[1740367516438,3.5428,2756.1,2755.4,0.5525]
[1740367516641,3.2078,2755.9,2755.4,0.5525]
[1740367516833,0.72573,2755.5,2755.4,0.5525]
[1740367517535,0.72576,2755.4,2755.3,0.00543616]
[1740367519937,6.72576,2755.4,2755.3,6.16e-06]
[1740367521235,7.02310327,2755.4,2755.3,6.16e-06]
[1740367521429,6.29734327,2755.4,2754.3,0.72603]
[1740367521634,0.72602,2754.4,2754.1,3.2078]
[1740367521839,0.72599,2754.5,2754.0,2.56]
[1740367522043,0.72599,2754.5,2754.2,0.72606]
[1740367522232,3.2078,2754.6,2754.2,0.72607]
[1740367522438,3.2078,2754.6,2754.1,2.56]
[1740367522633,3.2078,2754.6,2753.8,3.7472]
[1740367522836,3.2078,2754.3,2753.8,3.7472]
[1740367523031,3.2078,2754.3,2754.1,0.72608]
[1740367523237,0.72615,2753.9,2753.8,3.7472]
[1740367523541,3.7691,2754.3,2753.8,4.47337]
[1740367523735,3.7691,2754.3,2753.8,3.7472]
[1740367524136,3.7691,2754.3,2753.5,3.2078]
[1740367524337,1.082,2754.2,2753.5,3.2078]
[1740367524533,0.5347,2754.2,2753.9,0.72613]
[1740367524728,4.49516,2754.3,2753.5,3.2078]
[1740367524729,3.2078,2754.3,2753.7,2.559]
[1740367524939,0.72599,2754.5,2753.8,3.2078]
[1740367525141,0.72599,2754.5,2754.0,0.72611]
[1740367525342,3.2078,2754.6,2753.9,0.5283]
[1740367525542,0.5613,2754.5,2753.9,0.5283]
[1740367525748,3.2078,2754.6,2753.9,0.5283]
[1740367525941,0.72601,2754.5,2753.9,0.5283]
[1740367526141,3.2078,2754.6,2753.9,0.5283]
[1740367526348,0.5413,2754.4,2753.9,0.5283]
[1740367526542,3.2078,2754.3,2753.5,3.2078]
[1740367526734,3.2078,2754.3,2753.7,0.72619]
[1740367526938,3.93387,2754.3,2753.8,0.72616]
[1740367527250,0.5413,2754.4,2753.8,5.7678]
[1740367527434,0.5413,2754.4,2754.0,0.7261]
[1740367527641,0.5413,2754.4,2753.4,1.96793187]
[1740367527642,3.2078,2754.1,2753.4,0.15223187]
[1740367527944,0.72626,2753.5,2753.4,0.15223187]
[1740367528439,0.5413,2753.7,2753.4,0.15223187]
[1740367528646,0.72626,2753.5,2753.4,0.15223187]
[1740367529242,8.56,2753.5,2752.6,3.2078]
[1740367529449,3.2078,2753.2,2752.6,3.2078]
[1740367529643,3.2078,2753.2,2752.8,0.72644]
[1740367529948,0.72634,2753.2,2752.9,5.7678]
[1740367530149,0.00544613,2753.3,2753.0,0.5766]
[1740367530445,0.72636,2753.1,2753.0,0.5766]
[1740367530646,0.72643,2752.9,2752.7,2.56]
[1740367530843,0.72648,2752.7,2752.4,3.7844]
[1740367531042,0.00544613,2753.3,2752.6,0.72649]
[1740367531243,0.72638,2753.1,2752.6,0.72649]
[1740367531547,0.00544613,2753.3,2752.5,2.56]
[1740367531743,3.2078,2753.1,2752.5,2.56]
[1740367531946,0.72649,2752.7,2752.4,6.3444]
[1740367532141,0.5214,2753.0,2752.4,6.3444]
[1740367532341,0.5214,2753.0,2752.0,0.00280547]
[1740367532342,3.2078,2752.7,2752.0,0.00280547]
[1740367532549,3.2078,2752.7,2752.0,3.21060547]
[1740367532744,3.2078,2752.7,2752.0,5.77060547]
[1740367533049,3.2078,2752.7,2752.0,0.00280547]
[1740367533241,3.93428,2752.7,2752.0,3.21060547]
[1740367533437,3.93428,2752.7,2752.0,0.00280547]
[1740367533438,0.72659,2752.3,2752.0,0.00280547]
[1740367533748,3.2078,2752.7,2752.0,0.00280547]
[1740367533950,3.2078,2752.6,2752.0,0.00280547]
[1740367534447,0.72663,2752.1,2752.0,0.00280547]
[1740367534645,0.72663,2752.1,2752.0,5.47e-06]
[1740367534945,0.72718,2750.0,2749.9,4.82882251]
[1740367535149,0.27839153,2749.9,2749.1,12.24043513]
[1740367535339,0.049,2749.8,2749.4,3.2078]
[1740367535540,3.2078,2749.6,2749.2,7.2758032]
[1740367535843,0.00544613,2750.2,2749.7,7.2758032]
[1740367535844,3.21324613,2750.2,2749.7,7.2758032]
[1740367536046,0.00544613,2750.2,2750.1,7.2758032]
[1740367536246,3.2078,2751.6,2750.6,4.0680032]
[1740367536545,3.2078,2751.2,2750.7,3.2078]
[1740367536742,0.539,2751.7,2751.1,3.2078]
[1740367536937,3.2078,2751.7,2750.4,3.2078]
[1740367537143,3.2078,2752.0,2751.6,3.0053932]
[1740367537343,0.539,2751.9,2751.4,3.0053932]
[1740367537544,3.2078,2751.7,2751.4,3.0053932]
[1740367537742,0.54444613,2751.9,2751.7,3.0053932]
[1740367537954,0.54444613,2751.9,2751.8,3.0053932]
[1740367538246,0.00544613,2751.9,2751.8,3.0053932]
[1740367538641,0.5455,2753.1,2751.8,49.8053932]
[1740367538642,3.2078,2752.9,2751.8,49.8053932]
[1740367538846,6.73233184,2753.5,2753.0,3.0053932]
[1740367539044,6.73233184,2753.5,2752.2,3.2078]
[1740367539045,3.7462,2754.0,2753.4,3.0053932]
[1740367539347,3.7462,2754.0,2753.0,1.1508]
[1740367539545,0.72625,2753.6,2753.3,3.0053932]
[1740367539744,3.2078,2753.7,2753.0,7.3776]
[1740367540045,3.2078,2753.7,2753.6,3.0053932]
[1740367540351,0.00544613,2753.8,2753.6,3.0053932]
[1740367540652,0.00544613,2753.8,2753.7,3.0053932]
[1740367541952,0.00544613,2753.8,2753.7,3.7315932]
[1740367542259,0.00544613,2753.8,2753.7,3.0053932]
[1740367542548,0.73162613,2753.8,2753.7,3.0053932]
[1740367542748,0.00544613,2753.8,2753.2,0.00544613]
[1740367542950,0.72631,2753.3,2753.2,3.01083933]
[1740367543146,0.72631,2753.3,2753.2,0.00544613]
[1740367543544,3.2078,2753.5,2753.2,0.00544613]
[1740367543743,3.2078,2753.5,2753.3,3.0053932]
[1740367543951,0.29568553,2753.4,2753.3,3.0053932]
[1740367544250,1.02196553,2753.4,2753.3,3.0053932]
[1740367544453,0.29568553,2753.4,2753.3,3.0053932]
[1740367544648,0.29568553,2753.4,2753.3,3.7317032]
[1740367544849,3.2078,2753.5,2753.3,3.0053932]
[1740367545047,3.2078,2753.5,2753.4,3.0053932]
[1740367545048,3.93406,2753.5,2753.4,3.0053932]
[1740367546059,8.72741673,2753.8,2753.4,3.0053932]
[1740367546259,8.72741673,2753.8,2753.7,3.0053932]
[1740367546649,9.45359673,2753.8,2753.7,3.0053932]
[1740367546955,8.72741673,2753.8,2753.7,3.0053932]
[1740367547149,5.51961673,2753.8,2753.7,3.0053932]
[1740367547352,5.51961673,2753.8,2753.7,3.7315932]
[1740367547550,5.51961673,2753.8,2753.7,3.0053932]
[1740367547752,3.88732005,2754.0,2753.9,0.72615]
[1740367547956,1.8142,2755.8,2754.1,0.7261]
[1740367547957,4.67911406,2754.2,2754.1,0.7261]
[1740367548151,3.81131406,2754.2,2754.1,3.7371]
[1740367548460,2.94361406,2754.2,2754.1,14.41999053]
[1740367548650,2.94361406,2754.2,2754.1,14.94569053]
[1740367549345,2.94361406,2754.2,2754.1,10.2558]
[1740367549857,0.00544613,2754.4,2754.1,9.5297]
[1740367550157,0.00544613,2754.4,2754.3,3.93385]
[1740367550551,0.00544613,2754.4,2754.3,3.2078]
[1740367551157,0.00544613,2754.4,2753.7,3.002]
[1740367551350,3.2078,2754.2,2753.4,1.1069]
[1740367551747,3.2078,2753.9,2753.4,1.1069]
[1740367552054,0.72618,2753.8,2753.4,0.5341]
[1740367552755,3.2078,2753.9,2753.4,0.5341]
[1740367552961,3.2078,2754.2,2753.4,3.7419]
[1740367553155,0.72615,2754.0,2753.4,4.46817]
[1740367553355,0.72615,2753.9,2753.5,0.5302]
[1740367553854,0.72626,2753.5,2753.4,3.2078]
[1740367554056,0.72626,2753.5,2753.2,0.00544613]
[1740367554057,3.2078,2753.6,2753.2,0.00544613]
[1740367554258,0.7263,2753.4,2753.2,0.00544613]
[1740367554455,0.72631,2753.3,2753.2,0.00544613]
[1740367554658,3.93411,2753.3,2753.2,0.00544613]
[1740367554863,3.2078,2753.6,2753.2,0.00544613]
[1740367555360,0.72631,2753.3,2753.2,0.00544613]
[1740367556460,3.93411,2753.3,2753.2,6.13e-06]
[1740367556661,4.23098246,2753.3,2753.2,6.13e-06]
[1740367559562,0.72647,2752.7,2752.6,20.139]
[1740367560464,3.2078,2752.9,2751.5,3.2078]
[1740367560658,0.72678,2751.5,2751.4,0.5263]
[1740367560862,0.72678,2751.5,2751.3,2.981]
[1740367560863,0.72681,2751.4,2751.3,2.981]
[1740367561060,1.81665,2752.0,2751.3,2.981]
[1740367561061,3.2078,2752.0,2751.3,2.981]
[1740367561261,3.2078,2752.1,2751.8,0.72669]
[1740367561455,0.72658,2752.3,2751.9,0.72666]
[1740367561653,0.72657,2752.3,2751.9,0.72666]
[1740367561859,3.2078,2752.4,2751.6,3.2078]
[1740367562061,0.72684,2751.3,2751.2,0.00544613]
[1740367562568,0.5265,2751.8,2751.2,0.00544613]
[1740367562771,3.50441878,2751.7,2751.2,2.98644613]
[1740367563264,0.00544613,2752.7,2751.2,2.98644613]
[1740367563265,3.2078,2752.4,2751.4,3.2078]
[1740367563466,3.2078,2752.4,2751.4,2.954]
[1740367563769,0.72666,2752.0,2751.5,3.71677]
[1740367563956,3.2078,2752.1,2751.5,2.99]
[1740367564161,0.5265,2752.6,2751.5,2.99]
[1740367564162,3.2078,2752.5,2751.7,3.2078]
[1740367564362,0.00544613,2752.7,2751.6,10.19432813]
[1740367564666,0.72656,2752.4,2751.9,0.72666]
[1740367564868,0.72654,2752.5,2752.0,3.71464]
[1740367565166,0.00544613,2752.7,2752.0,6.1958]
[1740367565869,0.29755876,2752.6,2752.2,0.72659]
[1740367566161,0.73192613,2752.7,2752.2,0.72659]
[1740367566360,0.00544613,2752.7,2752.3,0.72656]
[1740367566558,0.00544613,2752.7,2752.1,0.5355]
[1740367566762,0.72651,2752.6,2752.1,1.26211]
[1740367566964,0.00544613,2752.7,2752.1,0.5355]
[1740367567358,0.73192613,2752.7,2752.1,0.5355]
[1740367567563,0.00544613,2752.7,2752.3,3.2078]
[1740367567757,0.00544613,2752.7,2752.6,3.93429]
[1740367567961,0.00544613,2752.7,2752.6,6.91729]
[1740367569164,0.00544613,2752.7,2752.6,12.91729]
[1740367569359,8.2712559,2753.5,2753.4,0.72628]
[1740367569871,5.9198444,2753.5,2753.4,9.93408]
[1740367570071,2.70974082,2753.5,2753.4,15.20195149]
[1740367570272,2.411471,2753.5,2753.4,15.20195149]
[1740367570472,0.28958752,2753.5,2753.4,15.20195149]
[1740367570768,7.52e-06,2753.5,2753.4,15.20195149]
[1740367571072,8.8019922,2753.7,2753.4,55.27567149]
[1740367571275,5.90697259,2753.7,2753.6,0.72623]
[1740367571467,1.6469,2755.0,2753.6,0.72623]
[1740367571671,0.72594,2754.8,2754.3,3.2078]
[1740367571864,1.6469,2755.0,2754.3,3.2078]
[1740367572169,0.726,2754.5,2754.4,2.979]
[1740367572570,0.726,2754.5,2754.1,20.144]
[1740367572767,3.2078,2754.4,2753.5,2.983]
[1740367572973,0.29824628,2754.3,2753.5,2.983]
[1740367573469,3.50604628,2754.3,2753.5,2.983]
[1740367573766,0.72614,2754.0,2753.5,2.983]
[1740367573972,0.72614,2754.0,2753.5,0.72626]
[1740367574174,0.72614,2754.0,2753.6,2.99]
[1740367574869,3.21324613,2754.7,2753.6,2.99]
[1740367575067,0.72608,2754.2,2753.6,2.99]
[1740367575265,0.72614,2754.0,2753.6,2.99]
[1740367575670,0.72615,2753.9,2753.6,2.99]
[1740367575866,3.2078,2754.0,2753.2,0.00544613]
[1740367576067,0.29793672,2753.9,2753.3,2.979]
[1740367576266,0.72627,2753.5,2753.3,2.979]
[1740367576463,0.72628,2753.4,2753.3,2.979]
[1740367576768,0.72627,2753.5,2753.3,2.979]
[1740367577163,3.783,2754.0,2753.3,2.979]
[1740367577367,3.2078,2753.7,2753.4,2.972]
[1740367577568,0.72631,2753.4,2753.2,0.00544613]
[1740367577771,0.72625,2753.6,2753.3,2.972]
[1740367577969,3.2078,2753.7,2753.3,2.972]
[1740367578769,3.2078,2753.7,2753.4,0.72627]
[1740367578970,0.5752,2754.0,2753.4,3.2078]
[1740367579176,0.5752,2754.0,2753.7,0.72619]
[1740367579376,0.5752,2754.0,2753.8,2.965]
[1740367579579,0.72631,2753.3,2753.2,0.00544613]
[1740367579970,3.93411,2753.3,2753.2,0.00544613]
[1740367580173,0.72639,2753.0,2752.9,2.979]
[1740367580581,3.93419,2753.0,2752.9,2.979]
[1740367580783,0.72645,2752.8,2752.3,3.93436]
[1740367580977,3.50639507,2753.0,2752.5,2.978]
[1740367581474,0.72647,2752.7,2752.5,2.98344613]
[1740367581683,3.21324613,2753.0,2752.5,2.98044613]
[1740367582076,0.29859365,2752.9,2752.5,2.98044613]
[1740367582283,0.72649,2752.6,2752.5,0.00544613]
[1740367583283,1.02503522,2752.6,2752.5,0.00544613]
[1740367584579,4.23283522,2752.6,2752.5,0.00544613]
[1740367584779,3.50634522,2752.6,2751.3,3.2078]
[1740367585080,3.2078,2752.1,2751.4,2.969]
[1740367585376,0.5786,2752.5,2751.7,3.2078]
[1740367585377,0.29854522,2752.0,2751.7,3.2078]
[1740367585582,3.7864,2752.5,2751.4,10.98779739]
[1740367585583,3.2078,2751.9,2751.4,10.98779739]
[1740367585783,0.72673,2751.7,2751.5,2.971]
[1740367585979,3.2078,2751.9,2751.5,2.971]
[1740367586178,0.72676,2751.6,2751.5,2.971]
[1740367587183,0.72678,2751.5,2751.4,0.00544613]
[1740367587788,0.538,2751.8,2751.4,0.00544613]
[1740367588088,1.26473,2751.8,2751.4,0.00544613]
[1740367588296,0.29804528,2751.7,2751.4,0.00544613]
[1740367588793,3.7458,2752.9,2751.7,1.81682]
[1740367588988,3.7458,2752.9,2752.3,3.2078]
[1740367589183,3.7458,2752.9,2752.3,6.1748]
[1740367589385,0.538,2752.9,2752.6,3.2078]
[1740367589582,0.538,2752.9,2752.3,2.967]
[1740367589782,0.00544613,2753.0,2752.3,2.967]
[1740367589783,0.00544613,2753.0,2752.5,3.2078]
[1740367589992,0.00544613,2753.0,2752.9,3.93421]
[1740367590192,0.00544613,2753.0,2752.9,6.89821]
[1740367590488,0.00544613,2753.0,2752.9,2.964]
[1740367590894,0.00544613,2753.0,2752.9,3.69041]
[1740367591294,4.3168,2754.0,2752.9,46.718]
[1740367591487,4.3168,2754.0,2753.3,0.72631]
[1740367591793,1.109,2754.0,2753.4,2.957]
[1740367592294,0.72621,2753.7,2753.4,2.96244613]
[1740367592492,0.72618,2753.9,2753.4,2.96244613]
[1740367592794,0.72626,2753.5,2753.4,0.00544613]
[1740367592993,0.72626,2753.5,2753.4,2.95844613]
[1740367593191,3.2078,2753.5,2753.1,0.29477535]
[1740367593385,0.72636,2753.1,2753.0,2.86e-06]
[1740367593592,2.987,2753.1,2751.0,3.2078]
[1740367593887,3.2078,2751.3,2750.6,3.2078]
[1740367594087,3.2078,2750.9,2750.2,11.29654985]
[1740367594290,0.7271,2750.3,2750.2,11.29654985]
[1740367594491,0.7271,2750.3,2750.2,1.41199985]
[1740367594697,0.72713,2750.2,2750.1,11.80796177]
[1740367594893,0.72713,2750.2,2750.1,5.71162177]
[1740367595193,0.72731,2749.5,2749.4,31.71475219]
[1740367595394,9.93511,2749.5,2749.4,28.96201219]
[1740367595990,3.93511,2749.5,2749.4,26.52415219]
[1740367596200,9.93511,2749.5,2749.4,25.75835219]
[1740367596391,0.72737,2749.3,2749.2,6.13e-06]
[1740367596696,3.20779387,2749.1,2747.3,20.142]
[1740367596997,3.2078,2747.9,2747.8,3.6368]
[1740367597193,3.2078,2748.4,2747.7,3.2078]
[1740367597491,3.2078,2748.1,2747.7,3.6368]
[1740367597692,3.2078,2748.1,2747.3,23.3498]
[1740367597895,3.2078,2747.8,2747.6,3.6368]
[1740367598289,3.057,2747.7,2747.0,3.2078]
[1740367598589,9.2078,2747.8,2746.2,23.105]
[1740367598590,3.2078,2747.5,2747.1,3.6368]
[1740367598791,3.2078,2747.2,2746.4,14.76569408]
[1740367598994,3.2078,2747.2,2747.1,0.72795]
[1740367599187,3.2078,2748.1,2747.1,6.8446]
[1740367599391,3.2078,2747.7,2747.4,3.6368]
[1740367599697,3.2078,2747.7,2747.1,3.6368]
[1740367599698,0.72785,2747.5,2747.1,3.6368]
[1740367599899,3.2078,2747.4,2746.4,8.49789408]
[1740367600098,0.72829,2745.8,2745.7,16.98316005]
[1740367600395,0.72829,2745.8,2745.4,22.34899922]
[1740367600396,0.72837,2745.5,2745.4,4.34851107]
[1740367600691,0.72844,2745.3,2745.1,14.42367047]
[1740367600891,3.2078,2745.2,2744.3,30.62590533]
[1740367601194,3.2078,2745.0,2744.4,14.1262]
[1740367601393,3.2078,2745.0,2744.3,37.90719731]
[1740367601394,3.2078,2745.0,2744.8,10.9184]
[1740367601594,3.2078,2745.0,2743.4,20.31323187]
[1740367601595,3.2078,2745.0,2744.7,10.9184]
[1740367601901,3.2078,2745.0,2744.6,10.9184]
[1740367602097,3.2078,2745.0,2744.4,10.9184]
[1740367602396,3.2078,2745.0,2743.4,12.15223187]
[1740367602397,0.7289,2743.5,2743.4,1.87e-06]
[1740367602692,6.6808,2743.5,2742.9,15.82944863]
[1740367602893,3.93684,2743.0,2742.9,15.82944863]
[1740367603097,3.93684,2743.0,2742.9,15.05970863]
[1740367603393,0.72906,2742.9,2742.3,28.20736438]
[1740367603592,3.2078,2742.3,2741.5,12.66090533]
[1740367603797,3.2078,2741.6,2740.2,2.294]
[1740367603992,6.39243482,2742.3,2739.9,36.19425176]
[1740367603993,3.2078,2740.9,2739.9,36.19425176]
[1740367604195,3.2078,2740.6,2739.9,36.19425176]
[1740367604496,0.00546757,2741.4,2739.9,36.19425176]
[1740367604497,0.72978,2740.2,2740.1,345.7937075]
[1740367604686,0.72978,2740.2,2740.1,322.47056497]
[1740367604889,3.2078,2740.6,2740.1,367.07629165]
[1740367605095,0.00546757,2741.4,2741.2,25.5088]
[1740367605294,0.00546757,2741.4,2740.3,21.86989198]
[1740367605295,3.2078,2741.3,2741.1,25.5088]
[1740367605494,3.2078,2742.8,2741.7,21.86989198]
[1740367605696,3.2078,2742.8,2742.4,25.5088]
[1740367605895,3.2078,2742.8,2742.1,25.5088]
[1740367606096,3.2078,2742.3,2741.2,3.2078]
[1740367606397,3.2078,2741.9,2741.4,46.46727198]
[1740367606604,3.2078,2742.0,2741.8,40.8]
[1740367606794,3.2078,2742.0,2741.9,24.59738]
[1740367606993,3.2078,2742.4,2741.9,24.59738]
[1740367607197,3.2078,2742.0,2741.4,0.00546757]
[1740367607404,3.2078,2742.4,2741.8,24.59738]
[1740367607590,3.2078,2742.3,2741.6,46.46727198]
[1740367607795,3.2078,2742.2,2741.6,24.59738]
[1740367607996,3.2078,2742.2,2741.4,0.00546757]
[1740367608195,3.2078,2742.3,2741.6,47.19666198]
[1740367608404,3.2078,2742.3,2741.7,24.59738]
[1740367608603,3.2078,2742.0,2741.6,24.59738]
[1740367608999,3.2078,2742.0,2741.6,28.72355387]
[1740367609208,3.2078,2742.0,2741.5,0.72943]
[1740367609499,3.2078,2741.7,2741.5,24.59738]
[1740367609801,3.2078,2741.7,2741.6,22.59930198]
[1740367610103,3.2078,2741.7,2741.6,47.19668198]
[1740367610408,0.00546757,2742.5,2742.4,0.7292]
[1740367610606,3.2078,2743.1,2742.6,24.59191243]
[1740367610901,3.2078,2743.1,2743.0,0.72904]
[1740367611097,3.2078,2743.1,2743.0,47.19084441]
[1740367611400,3.2078,2743.7,2743.0,74.45596828]
[1740367611605,3.2078,2743.7,2743.6,21.86989198]
[1740367611801,30.09629891,2744.1,2743.6,46.46180441]
[1740367611997,3.2078,2744.6,2743.9,40.99244217]
[1740367612196,0.72857,2744.8,2743.9,41.72124217]
[1740367612392,3.2078,2745.2,2744.1,24.59191243]
[1740367612597,3.2078,2745.2,2744.2,3.2078]
[1740367612793,3.2078,2745.2,2743.7,24.816]
[1740367612794,3.2078,2745.2,2745.0,24.59191243]
[1740367613199,3.2078,2745.2,2745.1,24.59191243]
[1740367613498,7.8148,2745.2,2743.7,20.208]
[1740367613702,3.2078,2744.5,2744.3,16.93737958]
[1740367613904,3.2078,2744.8,2744.6,16.93737958]
[1740367614411,3.2078,2744.7,2744.6,16.93737958]
[1740367614603,0.73386757,2745.4,2744.9,16.93737958]
[1740367614903,3.75440757,2745.2,2745.0,16.93737958]
[1740367615104,0.54660757,2745.2,2745.1,0.72848]